Cogmind - Beta 11 X6 @@@ ROGUE MODE // 2021.08.19 @ 11:13:53 // AFD2020/Player2 Player: P2 Corridor Death Result: Destroyed by Y-64 Sentinel with Wave Gun Performance ------------- Evolutions (6) 3000 Regions Visited (14) 2800 Robots Destroyed (125) 625 Value Destroyed (4183) 4183 Prototype IDs (42) 840 Alien Tech Used (0) 0 Bonus (3025) 3025 TOTAL SCORE: 14473 Bonus ------- High Alert Combat Kills 571 Follower Combat Kills 3334 Network Hubs Disabled 200 Aligned with FarCom 300 Friendly Fire -1380 Cogmind --------- Core Integrity 0/1150 Matter 290/300 Energy 190/190 System Corruption 1% Temperature Cool (9) Movement Flying (26) Location -4/Factory Parts ------- > --- POWER (2) -------- Light Quantum Reactor > --- PROPULSION (5) --- VTOL Module Improved VTOL Module Impulse Thruster Impulse Thruster Impulse Thruster > --- UTILITY (9) ------ Advanced Visual Processing Unit Advanced Signal Interpreter Advanced Melee Analysis Suite Experimental Melee Analysis Suite Experimental Melee Analysis Suite Improved Weapon Shielding Improved Medium Armor Plating Improved Hacking Suite Improved Hacking Suite > --- WEAPON (3) ------- Molecular Scythe > --- INVENTORY (5) ---- Impulse Thruster Impulse Thruster Fusion Compressor Experimental Melee Analysis Suite Peak State ------------ > --- POWER ------------ Light Fission Core > --- PROPULSION ------- Improved VTOL Module Cooled VTOL Module Cooled VTOL Module Cooled VTOL Module Cooled VTOL Module > --- UTILITY ---------- Fusion Compressor Large Storage Unit Advanced Energy Well Gravity Neutralizing Apparatus Experimental Melee Analysis Suite Experimental Melee Analysis Suite > --- WEAPON ----------- AWS/Autocannon > --- INVENTORY -------- Light Angular Momentum Engine Improved Titanium Leg Improved Titanium Leg Combat Airjet Combat Airjet Experimental Melee Analysis Suite Experimental Melee Analysis Suite Improved Weapon Shielding Molecular Scythe Molecular Scythe [Rating: 100] Favorites ----------- Power Ion Engine Engine Ion Engine Power Core Light Fission Core Reactor Light Antimatter Reactor Propulsion Cooled VTOL Module Treads Light Treads Leg Aluminum Leg Wheel Armored Wheel Flight Unit Cooled VTOL Module Utility Experimental Melee Analysis Suite Device Gravity Neutralizing Apparatus Storage Large Battery Processor Experimental Melee Analysis Suite Hackware Improved Hacking Suite Protection Improved Weapon Shielding Weapon Light EM Pulse Cannon Energy Gun Improved Medium Laser Energy Cannon Light EM Pulse Cannon Ballistic Gun Assault Rifle Ballistic Cannon AWS/Autocannon Launcher Grenade Launcher Slashing Weapon Molecular Scythe Special Melee Weapon Advanced Datajack Build | -11 -10 -9 -9 -9 -8 -8 -7 -6 -6 -6 -6 -6 -5 -4 ------- Run | Scr Mat Mat Min Exi Min Mat Fac Fac Ext Cet Arc Hub Fac Fac Slots Evolved 12 | . . 2 . . . 2 2 2 . . . . 2 2 Power 1 | . . . . . . . . . . . . . . 1 Propulsion 3 | . . 1 . . . . 2 . . . . . . . Utility 7 | . . 1 . . . 1 . 2 . . . . 2 1 Weapon 1 | . . . . . . 1 . . . . . . . . Parts Attached 171 | 15 20 8 3 1 . 16 37 11 6 7 11 . 11 25 Power 19 | 4 2 . . . . 1 1 2 2 . 1 . 1 5 Engine 11 | 4 2 . . . . . 1 1 1 . 1 . 1 . Core 4 | . . . . . . 1 . 1 1 . . . . 1 Reactor 4 | . . . . . . . . . . . . . . 4 Propulsion 38 | 4 6 1 . . . 5 12 . . . . . 1 9 Treads 4 | 2 2 . . . . . . . . . . . . . Leg 9 | 2 4 1 . . . 2 . . . . . . . . Wheel 2 | . . . . . . 2 . . . . . . . . Hover . | . . . . . . . . . . . . . . . Flight 23 | . . . . . . 1 12 . . . . . 1 9 Utility 61 | 3 7 3 . 1 . 3 13 4 1 2 6 . 7 11 Device 24 | 1 3 1 . . . 2 6 1 . 1 1 . 3 5 Storage 8 | 1 2 1 . 1 . . 2 . 1 . . . . . Processor 14 | 1 . . . . . 1 4 2 . . . . 2 4 Hackware 5 | . . . . . . . . . . . 5 . . . Protection 10 | . 2 1 . . . . 1 1 . 1 . . 2 2 Artifact . | . . . . . . . . . . . . . . . Weapon 53 | 4 5 4 3 . . 7 11 5 3 5 4 . 2 . Energy Gun 14 | 1 . . . . . 3 8 2 . . . . . . Energy Cannon 12 | . 5 3 1 . . 3 . . . . . . . . Ballistic Gun 5 | 3 . . . . . . 1 . . 1 . . . . Ballistic Cannon 7 | . . . . . . . 1 1 2 3 . . . . Launcher 4 | . . 1 2 . . 1 . . . . . . . . Special Weapon . | . . . . . . . . . . . . . . . Impact Weapon . | . . . . . . . . . . . . . . . Slashing Weapon 10 | . . . . . . . 1 2 1 1 3 . 2 . Piercing Weapon . | . . . . . . . . . . . . . . . Special Melee Weapon 1 | . . . . . . . . . . . 1 . . . Unidentified Prototypes 10 | . . . . . . 1 8 . 1 . . . . . Corrupted Parts 3 | . . . . . . 1 2 . . . . . . . System Corruption 7 | . . . . . . 1 6 . . . . . . . Parts Lost 14 | . . . 1 . . . 1 . . 1 . . 2 9 Power 4 | . . . . . . . . . . . . . 1 3 Propulsion 4 | . . . . . . . . . . . . . 1 3 Utility 5 | . . . . . . . 1 . . 1 . . . 3 Weapon 1 | . . . 1 . . . . . . . . . . . Highest Loss Streak 7 | . . . 1 . . . 1 . . 1 . . 1 7 Average Slot Usage (%) 91 | . 99 100 99 100 100 91 96 84 84 81 85 93 90 82 Engine 4 | . 14 11 11 11 11 . . 1 . . 2 6 4 . Core 3 | . . . . . . 8 6 4 6 6 3 . . 5 Leg 12 | . 26 33 33 33 33 18 . . . . . . . . Flight 17 | . . . . . . . 37 33 33 33 33 33 28 24 Device 8 | . 11 11 11 11 11 9 10 8 6 7 5 . 3 3 Storage 10 | . 4 13 22 22 22 18 7 13 12 13 8 . . . Processor 7 | . 2 . . . . . 7 10 13 13 13 13 14 17 Hackware 3 | . . . . . . . . . . . 8 26 20 13 Protection 4 | . 9 8 . . . . 2 6 6 4 3 . 4 9 Energy Gun 2 | . . . . . . . 20 . . . . . . . Energy Cannon 10 | . 27 22 12 11 11 25 . . . . . . . . Launcher 1 | . . . 8 11 11 . . . . . . . . . Slashing Weapon 2 | . . . . . . . . 4 4 . 6 13 10 5 Naked Turns . | . . . . . . . . . . . . . . . Heaviest Build 96 | 13 24 27 27 27 27 43 90 96 36 92 38 18 26 28 Greatest Support 45 | 40 40 30 30 30 30 30 37 45 37 37 37 33 27 30 Greatest Overweight (x) 11 | . 1 . . . . 11 2 2 . 2 1 . . 1 Average Overweight (x) . | . . . . . . 3 . . . . . . . . Largest Inventory Capacity 15 | 8 10 10 10 10 10 10 15 15 15 15 15 5 5 5 Average Capacity 9 | 5 6 10 10 10 10 10 6 15 15 15 13 5 5 5 Most Carried 15 | 6 10 10 10 10 10 10 14 15 15 14 14 5 5 5 Average Carried 8 | . 5 9 9 9 10 7 5 13 13 13 10 5 4 4 Final Capacity 15 | 8 10 10 10 10 10 10 15 15 15 15 5 5 5 5 Final Carried 15 | 6 10 8 10 10 10 10 14 15 14 14 5 5 4 4 Class Distribution -------------------- 30% | Sprinter 20% | Scavenger-Mutant 16% | Mutant 14% | Hacker-Sprinter 10% | Skirmisher 3% | Commander-Sprinter Dominant Class ---------------- Mutant | -10/Materials Scavenger-Mutant | -9/Materials Scavenger-Mutant | -9/Mines Scavenger-Mutant | -9/Exiles Scavenger-Mutant | -8/Mines Skirmisher | -8/Materials Sprinter | -7/Factory Sprinter | -6/Factory Sprinter | -6/Extension Sprinter | -6/Cetus Sprinter | -6/Archives Hacker-Sprinter | -6/Hub_04(d) Hacker-Sprinter | -5/Factory Hacker-Sprinter | -4/Factory Resources | -11 -10 -9 -9 -9 -8 -8 -7 -6 -6 -6 -6 -6 -5 -4 ----------- Run | Scr Mat Mat Min Exi Min Mat Fac Fac Ext Cet Arc Hub Fac Fac Matter Collected 2110 | 509 223 100 10 . 29 132 420 110 60 47 133 . 111 226 Remotely . | . . . . . . . . . . . . . . . Salvage Created 4933 | 341 499 343 76 . 30 275 434 389 264 104 315 125 632 1106 Parts 252 | 26 22 24 4 . 3 21 14 17 13 6 13 7 28 54 Haulers Intercepted 11 | . 2 . . . . 2 3 1 . . . . 2 1 Recyclers Shooed . | . . . . . . . . . . . . . . . Parts Field Recycled . | . . . . . . . . . . . . . . . Retrieved Matter . | . . . . . . . . . . . . . . . Parts Self-Destructed . | . . . . . . . . . . . . . . . Prevented . | . . . . . . . . . . . . . . . Kills | -11 -10 -9 -9 -9 -8 -8 -7 -6 -6 -6 -6 -6 -5 -4 ------- Run | Scr Mat Mat Min Exi Min Mat Fac Fac Ext Cet Arc Hub Fac Fac Combat Hostiles Destroyed 78 | . 10 11 4 . 3 6 4 5 3 7 . 2 7 16 Melee 29 | . . . . . . . . 4 . . . 2 7 16 Guns 3 | . . . . . . . 3 . . . . . . . Cannons 37 | . 10 7 4 . . 4 1 1 3 7 . . . . AOE 9 | . . 4 . . 3 2 . . . . . . . . Classes Destroyed 16 | 3 3 3 . . . 1 1 1 3 . . . . 1 Worker 3 | 2 . 1 . . . . . . . . . . . . Builder 2 | . . . . . . 1 . 1 . . . . . . Tunneler 9 | 9 . . . . . . . . . . . . . . Hauler 11 | . 2 . . . . 2 3 1 . . . . 2 1 Recycler 4 | 1 . . . . . . 1 . 2 . . . . . Operator 10 | . . 1 . . . . . . . . 9 . . . Watcher 8 | . . 2 . . . 1 2 . . 1 . . . 2 Swarmer 29 | . 1 6 3 . 3 4 1 1 . 6 . . . 4 Saboteur 1 | . . . . . . . . . 1 . . . . . Grunt 23 | . 9 2 1 . . 2 1 3 . . . 1 2 2 Duelist 2 | . . . . . . . . . 1 . . . . 1 Protector 1 | . . . . . . . . . . . . . . 1 Sentry 7 | . . 3 . . . . 1 . . . . 1 1 1 Hunter 8 | . . . . . . . . 1 . . . . 1 6 Programmer 4 | . . . . . . . 1 . . . . . 2 1 Heavy 2 | . . . . . . . . . 1 . . . 1 . Cetus Guard 1 | . . . . . . . . . . 1 . . . . Best Kill Streak 7 | 5 2 4 3 . 3 3 3 4 2 4 7 1 3 4 Combat Bots Only 4 | . 2 4 3 . 3 2 1 4 2 4 . 1 2 4 Max Kills in Single Turn 3 | 1 1 2 1 . 3 2 1 1 1 1 1 1 1 1 Gunslinging . | . . . . . . . . . . . . . . . Exploded 3 | . . 2 . . 3 2 . . . . . . . . Melee 1 | . . . . . . . . 1 . . . 1 1 1 Uniques/NPCs Destroyed . | . . . . . . . . . . . . . . . Combat | -11 -10 -9 -9 -9 -8 -8 -7 -6 -6 -6 -6 -6 -5 -4 -------- Run | Scr Mat Mat Min Exi Min Mat Fac Fac Ext Cet Arc Hub Fac Fac Damage Taken 3479 | . 189 188 89 . 24 70 182 101 124 346 . 59 505 1602 Core 1183 | . 44 15 . . 16 . 40 . 46 45 . 19 240 718 Absorbed by Shields 6 | . . . . . . . . . . . . . . 6 Core Remaining (%) 67 | 100 66 . . . 77 98 85 . . . . 41 6 . Volleys Fired 158 | 53 33 31 7 . 1 14 17 2 . . . . . . Largest 3 | 1 2 2 2 . 1 3 3 2 . . . . . . Hottest 240 | 20 120 112 116 . 30 191 240 85 . . . . . . Shots Fired 309 | 53 64 50 14 . 1 40 56 7 5 19 . . . . Gun 108 | 53 . . . . . . 51 4 . . . . . . Cannon 197 | . 64 48 14 . . 39 5 3 5 19 . . . . Launcher 4 | . . 2 . . 1 1 . . . . . . . . Special . | . . . . . . . . . . . . . . . Kinetic 85 | 53 . . . . . . 5 3 5 19 . . . . Thermal 152 | . 60 9 2 . . 26 51 4 . . . . . . Explosive 4 | . . 2 . . 1 1 . . . . . . . . Electromagnetic 68 | . 4 39 12 . . 13 . . . . . . . . Robot Hit Streak 13 | 9 8 6 9 . . 7 6 6 6 13 . . . . Robot Miss Streak 5 | 3 3 3 2 . . 2 5 1 . 2 . . . . Penetration Max . | . . . . . . . . . . . . . . . Secondary Targets . | . . . . . . . . . . . . . . . Autonomous 32 | . . . . . . . 5 3 5 19 . . . . Shots Hit Robots 298 | 38 34 29 9 . . 9 35 16 10 17 19 2 18 62 Core Hits 152 | 13 12 18 4 . 3 14 18 8 5 9 9 2 11 26 Critical Kills . | . . . . . . . . . . . . . . . Critical Parts Destroyed . | . . . . . . . . . . . . . . . Critical Strikes 11 | . . 1 . . . . 2 1 . 2 . . 1 4 Burn 2 | . . . . . . . 2 . . . . . . . Blast 2 | . . . . . . . . . . 2 . . . . Corrupt 1 | . . 1 . . . . . . . . . . . . Sever 6 | . . . . . . . . 1 . . . . 1 4 Melee Attacks 130 | . . . . . . . . 13 5 1 22 2 22 65 Impact . | . . . . . . . . . . . . . . . Slashing 128 | . . . . . . . . 13 5 1 20 2 22 65 Piercing . | . . . . . . . . . . . . . . . Sneak Attacks 16 | . . . . . . . . 1 4 . 5 1 2 3 Combat Hostiles 2 | . . . . . . . . . . . . 1 . 1 Follow-up Attacks 1 | . . . . . . . . . . . . . 1 . Damage Inflicted 15390 | 473 658 989 192 . 126 635 819 1010 1226 1422 2165 243 1162 4270 Guns 1099 | 473 . . . . . . 535 91 . . . . . . Cannons 4219 | . 632 725 187 . . 433 284 119 417 1422 . . . . Explosions 588 | . . 260 . . 126 202 . . . . . . . . Melee 9449 | . . . . . . . . 800 809 . 2165 243 1162 4270 Ramming 35 | . 26 4 5 . . . . . . . . . . . Kinetic 2715 | 473 . . . . . . 284 119 417 1422 . . . . Thermal 1719 | . 610 146 18 . . 319 535 91 . . . . . . Explosive 457 | . . 260 . . 126 71 . . . . . . . . Electromagnetic 1015 | . 22 579 169 . . 245 . . . . . . . . Impact . | . . . . . . . . . . . . . . . Slashing 9449 | . . . . . . . . 800 809 . 2165 243 1162 4270 Piercing . | . . . . . . . . . . . . . . . Highest Corruption 7 | . 3 . . . . 1 7 . . . . . . 1 Average Corruption 2 | . 2 . . . . 1 1 . . . . . . 1 Corruption Purged . | . . . . . . . . . . . . . . . Effects 16 | . 13 . . . . . 3 . . . . . . . Message Errors 5 | . 3 . . . . . 2 . . . . . . . Matter Fused 5 | . 4 . . . . . 1 . . . . . . . Heat Flow Errors 4 | . 4 . . . . . . . . . . . . . Energy Discharges 1 | . 1 . . . . . . . . . . . . . Data Loss (minor) 1 | . 1 . . . . . . . . . . . . . Overload Shots . | . . . . . . . . . . . . . . . Overflow Damage 2115 | . 11 30 . . . 15 76 5 233 131 975 . . 639 Projectiles 337 | . 11 30 . . . 11 76 . 78 131 . . . . Explosions 4 | . . . . . . 4 . . . . . . . . Melee 1774 | . . . . . . . . 5 155 . 975 . . 639 Knockbacks 7 | . . . . . . . 1 . 2 4 . . . . Impact . | . . . . . . . . . . . . . . . Kinetic 7 | . . . . . . . 1 . 2 4 . . . . Secondary . | . . . . . . . . . . . . . . . Self-Inflicted Damage 26 | . . . . . 26 . . . . . . . . . Shots 1 | . . . . . 1 . . . . . . . . . Rammed . | . . . . . . . . . . . . . . . Targets Rammed 12 | . 8 2 2 . . . . . . . . . . . Kicked 12 | . 8 2 2 . . . . . . . . . . . Crushed . | . . . . . . . . . . . . . . . Highest Temperature 349 | . 270 63 . . . 153 349 105 4 1 7 108 99 59 Average Temperature 67 | . 86 22 . . . 52 89 57 4 1 7 45 44 14 Received Heat Transfer 366 | . 36 42 12 . . 9 . 24 21 9 . 18 90 105 Effects 1 | . 1 . . . . . . . . . . . . . Interference 1 | . 1 . . . . . . . . . . . . . Siege Activations . | . . . . . . . . . . . . . . . Robots Corrupted 1 | . . 1 . . . . . . . . . . . . Combat Hostiles . | . . . . . . . . . . . . . . . Parts Fried 2 | . . 1 . . . 1 . . . . . . . . Impact Corruptions . | . . . . . . . . . . . . . . . Robots Melted . | . . . . . . . . . . . . . . . Combat Hostiles . | . . . . . . . . . . . . . . . Parts Melted 7 | . 1 . . . . . 4 1 . 1 . . . . Heat Transferred 3531 | . 1239 296 37 . . 570 1241 148 . . . . . . Parts Sabotaged . | . . . . . . . . . . . . . . . Parts Stolen . | . . . . . . . . . . . . . . . Parts Stripped . | . . . . . . . . . . . . . . . Power Chain Reactions 2 | . . . . . . 2 . . . . . . . . Missiles Intercepted . | . . . . . . . . . . . . . . . Alert | -11 -10 -9 -9 -9 -8 -8 -7 -6 -6 -6 -6 -6 -5 -4 ------- Run | Scr Mat Mat Min Exi Min Mat Fac Fac Ext Cet Arc Hub Fac Fac Peak Influence 1277 | 60 219 442 266 . 93 192 504 1277 1218 881 544 325 604 638 Initial 649 | . . 45 114 . . 35 23 246 625 649 352 120 50 249 Average 330 | 35 97 240 250 . 93 72 137 818 862 735 439 166 366 339 Maximum Alert Level 4 | . 1 2 1 . . . 2 4 4 3 2 1 2 2 Low Security (%) 49 | 100 93 36 12 . 100 100 79 . . . . 71 19 24 Level 1 17 | . 6 42 87 . . . 5 14 . . 44 28 38 36 Level 2 17 | . . 20 . . . . 15 29 19 48 55 . 41 39 Level 3 10 | . . . . . . . . 29 58 51 . . . . Level 4 4 | . . . . . . . . 26 21 . . . . . Level 5 . | . . . . . . . . . . . . . . . High Security . | . . . . . . . . . . . . . . . Max Security . | . . . . . . . . . . . . . . . Squads Dispatched 39 | . 7 . . . . 1 2 7 5 . . 6 4 7 Investigation 11 | . 5 . . . . . . 2 . . . 4 . . Extermination 3 | . . . . . . . 1 . . . . . 1 1 Reinforcement 17 | . 2 . . . . . 1 2 4 . . 1 2 5 Assault 5 | . . . . . . . . 2 1 . . . 1 1 Garrison 3 | . . . . . . 1 . 1 . . . 1 . . Intercept . | . . . . . . . . . . . . . . . Construction Impeded 5 | . . . . . . . . 2 1 . . . . 2 Haulers Reinforced 5 | . . . . . . . . . . . . 1 2 2 Active Scanning Responses . | . . . . . . . . . . . . . . . Cargo Convoy Interrupts 1 | . . . . . . . 1 . . . . . . . Stealth | -11 -10 -9 -9 -9 -8 -8 -7 -6 -6 -6 -6 -6 -5 -4 --------- Run | Scr Mat Mat Min Exi Min Mat Fac Fac Ext Cet Arc Hub Fac Fac Distress Signals 15 | . 1 . . . . 3 1 1 2 1 . 1 2 3 Communications Jammed . | . . . . . . . . . . . . . . . Distress Signals . | . . . . . . . . . . . . . . . Times Spotted 226 | . 23 18 7 . . 11 13 30 25 13 13 15 19 39 Peak Tracking Total 10 | . 3 5 4 . . 4 9 9 5 7 1 10 6 7 Tactical Retreats 9 | . . . . . . . . 2 3 1 . 1 1 1 Traps | -11 -10 -9 -9 -9 -8 -8 -7 -6 -6 -6 -6 -6 -5 -4 ------- Run | Scr Mat Mat Min Exi Min Mat Fac Fac Ext Cet Arc Hub Fac Fac Traps Triggered 12 | . 4 . . . . . 1 1 1 . . 1 . 4 Indirectly . | . . . . . . . . . . . . . . . Trap Hack Attempts . | . . . . . . . . . . . . . . . Triggered . | . . . . . . . . . . . . . . . Disarmed . | . . . . . . . . . . . . . . . Reprogrammed . | . . . . . . . . . . . . . . . Reused . | . . . . . . . . . . . . . . . Traps Extracted . | . . . . . . . . . . . . . . . Installed . | . . . . . . . . . . . . . . . Triggered 1 | . . . . . . . 1 . . . . . . . Machines | -11 -10 -9 -9 -9 -8 -8 -7 -6 -6 -6 -6 -6 -5 -4 ---------- Run | Scr Mat Mat Min Exi Min Mat Fac Fac Ext Cet Arc Hub Fac Fac Machines Disabled 25 | . 2 1 . . . 1 2 8 . . 3 1 5 2 Max in Single Turn 1 | . 1 . . . . . 1 . . . . . . . Garrison Access 2 | . . . . . . . . 1 . . . . . 1 Network Hub 1 | . . . . . . . . . . . . 1 . . Machines Sabotaged 1 | . . . . . . . . . . . . 1 . . Garrisons Compromised 2 | . . . . . . . 1 1 . . . . . . Overloaded Fab Kills . | . . . . . . . . . . . . . . . Fab Network Shutdowns . | . . . . . . . . . . . . . . . Hacking | -11 -10 -9 -9 -9 -8 -8 -7 -6 -6 -6 -6 -6 -5 -4 --------- Run | Scr Mat Mat Min Exi Min Mat Fac Fac Ext Cet Arc Hub Fac Fac Machines Accessed 44 | . 8 4 . 2 . 2 5 6 . . . 6 6 5 Terminals 29 | . 6 4 . . . 2 3 3 . . . 5 3 3 Fabricators 3 | . . . . . . . 1 1 . . . . 1 . Repair Stations 3 | . . . . . . . . . . . . . 2 1 Recycling Units 2 | . 2 . . . . . . . . . . . . . Scanalyzers 1 | . . . . . . . . 1 . . . . . . Garrison Access 4 | . . . . . . . 1 1 . . . 1 . 1 Total Hacks 131 | . 23 12 . 2 . 4 10 10 . . . 26 28 16 Successful 71 | . 7 5 . 2 . 2 4 7 . . . 18 17 9 Failed 60 | . 16 7 . . . 2 6 3 . . . 8 11 7 Catastrophic 11 | . 4 2 . . . 1 3 . . . . . 1 . Database Lockouts . | . . . . . . . . . . . . . . . Manual 77 | . 12 7 . 1 . 3 8 5 . . . 19 17 5 Terminals 104 | . 20 12 . . . 4 8 6 . . . 23 21 10 Fabricators 4 | . . . . . . . 1 1 . . . . 2 . Repair Stations 10 | . . . . . . . . . . . . . 5 5 Recycling Units 3 | . 3 . . . . . . . . . . . . . Scanalyzers 2 | . . . . . . . . 2 . . . . . . Garrison Access 6 | . . . . . . . 1 1 . . . 3 . 1 Terminal Hacks 41 | . 5 5 . 2 . 2 2 2 . . . 10 7 6 Record 1 | . . . . 1 . . . . . . . . . . Robot Schematic 3 | . 1 . . . . . . . . . . 1 1 . Robot Analysis 1 | . . 1 . . . . . . . . . . . . Prototype ID Bank 3 | . 1 1 . . . . . . . . . . 1 . Level Access Points 2 | . . . . . . . . . . . . 1 1 . Branch Access Points 4 | . . 1 . . . . 1 1 . . . . . 1 Machine Index 1 | . . . . . . . . . . . . . . 1 Terminal Index 2 | . . . . . . . . . . . . 1 1 . Garrison Index 1 | . . . . . . . . . . . . 1 . . Alert Level 2 | . . . . . . . . . . . . . 1 1 Unreport Threat 14 | . 2 1 . . . 2 1 . . . . 5 1 2 Locate Traps 1 | . . . . . . . . 1 . . . . . . Patrol Status 2 | . 1 . . . . . . . . . . . . 1 Recall Assault 1 | . . . . . . . . . . . . . 1 . Zone Layout 2 | . . 1 . . . . . . . . . 1 . . EX-Prototype ID Bank 1 | . . . . 1 . . . . . . . . . . Fabricator Hacks . | . . . . . . . . . . . . . . . Repair Station Hacks 6 | . . . . . . . . . . . . . 4 2 Scan Component 2 | . . . . . . . . . . . . . 2 . Repair 2 | . . . . . . . . . . . . . 2 . Refit 2 | . . . . . . . . . . . . . . 2 Recycling Unit Hacks . | . . . . . . . . . . . . . . . Scanalyzer 2 | . . . . . . . . 2 . . . . . . Insert Component 1 | . . . . . . . . 1 . . . . . . Analyze 1 | . . . . . . . . 1 . . . . . . Garrison Access Hacks 1 | . . . . . . . . . . . . . . 1 Seal Access 1 | . . . . . . . . . . . . . . 1 Unauthorized Hacks 21 | . 2 . . . . . 2 3 . . . 8 6 . Terminals 12 | . . . . . . . 1 1 . . . 6 4 . Track 3 | . . . . . . . . . . . . 1 2 . Assimilate 1 | . . . . . . . . 1 . . . . . . Botnet 1 | . . . . . . . . . . . . . 1 . Operators 3 | . . . . . . . 1 . . . . 1 1 . Sabotage 4 | . . . . . . . . . . . . 4 . . Fabricators 4 | . . . . . . . 1 1 . . . . 2 . Report 1 | . . . . . . . . . . . . . 1 . Haulers 3 | . . . . . . . 1 1 . . . . 1 . Repair Stations . | . . . . . . . . . . . . . . . Recycling Units 2 | . 2 . . . . . . . . . . . . . Tunnel 2 | . 2 . . . . . . . . . . . . . Scanalyzers . | . . . . . . . . . . . . . . . Garrison Access 3 | . . . . . . . . 1 . . . 2 . . Broadcast 1 | . . . . . . . . . . . . 1 . . Watchers 1 | . . . . . . . . . . . . 1 . . Jam 1 | . . . . . . . . 1 . . . . . . Data Cores Recovered 2 | . . 1 . . . . . . . . . 1 . . Used 1 | . . 1 . . . . . . . . . . . . Hacking Detections 31 | . 6 4 . . . 2 4 4 . . . 3 4 4 Full Trace Events 1 | . . . . . . . . 1 . . . . . . Feedback Events . | . . . . . . . . . . . . . . . Feedback Blocked . | . . . . . . . . . . . . . . . Robot Schematics Acquired 3 | . 1 . . . . . . . . . . 1 1 . Robots Built . | . . . . . . . . . . . . . . . Matter . | . . . . . . . . . . . . . . . Time . | . . . . . . . . . . . . . . . Total Robot Build Rating . | . . . . . . . . . . . . . . . Part Schematics Acquired 1 | . . . . . . . . 1 . . . . . . Parts Built . | . . . . . . . . . . . . . . . Matter . | . . . . . . . . . . . . . . . Time . | . . . . . . . . . . . . . . . Total Part Build Rating . | . . . . . . . . . . . . . . . Parts Repaired 2 | . . . . . . . . . . . . . 2 . Time 47 | . . . . . . . . . . . . . 47 . Parts Recycled . | . . . . . . . . . . . . . . . Recycled Matter . | . . . . . . . . . . . . . . . Retrieved Matter . | . . . . . . . . . . . . . . . Retrieved Components . | . . . . . . . . . . . . . . . Parts Scanalyzed 1 | . . . . . . . . 1 . . . . . . Part Schematics Acquired 1 | . . . . . . . . 1 . . . . . . Parts Damaged . | . . . . . . . . . . . . . . . Bothacking | -11 -10 -9 -9 -9 -8 -8 -7 -6 -6 -6 -6 -6 -5 -4 ------------ Run | Scr Mat Mat Min Exi Min Mat Fac Fac Ext Cet Arc Hub Fac Fac Used RIF Installer . | . . . . . . . . . . . . . . . Robots Hacked 1 | . . . . . . . . . . . 1 . . . Non-combat 1 | . . . . . . . . . . . 1 . . . Combat . | . . . . . . . . . . . . . . . Robot Hacks Applied 1 | . . . . . . . . . . . 1 . . . check_alert 1 | . . . . . . . . . . . 1 . . . Relay Couplers Released . | . . . . . . . . . . . . . . . Robots Rewired 4 | . . . . . . . . . 4 . . . . . Allies Hacked . | . . . . . . . . . . . . . . . Hacks Repelled . | . . . . . . . . . . . . . . . Allies | -11 -10 -9 -9 -9 -8 -8 -7 -6 -6 -6 -6 -6 -5 -4 -------- Run | Scr Mat Mat Min Exi Min Mat Fac Fac Ext Cet Arc Hub Fac Fac Total Allies 10 | . 1 . . . . . . 1 8 . . . . . Largest Group 10 | . 1 1 1 1 1 1 1 2 10 1 1 1 1 1 Highest-Rated Group 333 | . 58 64 64 64 64 68 84 114 333 138 140 142 147 157 Highest-Rated Ally 157 | . 58 64 64 64 64 68 84 104 120 138 140 142 147 157 Total Orders 1 | . . . . . . . . . 1 . . . . . ROAM 1 | . . . . . . . . . 1 . . . . . Ally Attacks 317 | . 36 20 6 . . 8 11 31 78 14 10 12 33 58 Total Damage 16698 | . 510 576 158 . . 192 653 2854 3945 795 625 1223 1850 3317 Kills 135 | . 8 7 2 . . 4 5 26 31 4 4 11 18 15 Allies Corrupted . | . . . . . . . . . . . . . . . Allies Melted 2 | . . . . . . . . . 2 . . . . . Intel | -11 -10 -9 -9 -9 -8 -8 -7 -6 -6 -6 -6 -6 -5 -4 ------- Run | Scr Mat Mat Min Exi Min Mat Fac Fac Ext Cet Arc Hub Fac Fac Robot Analysis Total 1 | . . 1 . . . . . . . . . . . . Derelict Logs Recovered . | . . . . . . . . . . . . . . . Drone Launches . | . . . . . . . . . . . . . . . Drone Recoveries . | . . . . . . . . . . . . . . . Exploration | -11 -10 -9 -9 -9 -8 -8 -7 -6 -6 -6 -6 -6 -5 -4 ------------- Run | Scr Mat Mat Min Exi Min Mat Fac Fac Ext Cet Arc Hub Fac Fac Turns Passed 10080 | 424 1736 472 404 475 132 1149 1023 796 1068 292 564 171 477 897 Spaces Moved 7788 | 195 847 205 276 346 100 420 985 1038 813 134 188 241 679 1321 Core 65 | 3 . . . . . 62 . . . . . . . . Treads 175 | 148 27 . . . . . . . . . . . . . Legs 1866 | 44 820 205 276 346 100 75 . . . . . . . . Wheels 284 | . . . . . . 283 1 . . . . . . . Hover . | . . . . . . . . . . . . . . . Flight 5398 | . . . . . . . 984 1038 813 134 188 241 679 1321 Fastest Speed 11 | 50 120 120 120 120 120 120 23 11 23 23 23 11 17 14 Average Speed 60 | 149 140 120 120 120 120 195 25 23 23 23 25 21 24 24 Slowest Speed 600 | 160 200 120 120 120 120 600 155 155 23 155 89 23 26 105 Overloaded Moves 175 | . . . . . . . . 11 . . . 110 18 36 Propulsion Burnouts . | . . . . . . . . . . . . . . . Robots Hopped 54 | . . . . . . . 5 11 6 . . 13 4 15 Cave-ins Triggered . | . . . . . . . . . . . . . . . Exploration Rate (%) 40 | 6 95 22 63 70 38 28 18 24 65 55 78 19 11 21 Regions Visited 14 Branch Regions 7 Pre-discovered Areas 3 | . 2 . . 1 . . . . . . . . . . Known Exits Taken 5 | . . 1 . . . 1 . 1 . . . 1 1 . Unknown Exits Taken 9 | 1 1 . 1 1 1 . 1 . 1 1 1 . . . Scrap Searched 2 | . . . 1 . 1 . . . . . . . . . Spaces Dug 10 | . . . . . 6 . . 2 . 1 . . 1 . Terrain Destroyed 49 | . . 9 . . 6 28 . 2 . 3 . . 1 . Melee 4 | . . . . . . . . 2 . 1 . . 1 . Projectile 13 | . . . . . . 11 . . . 2 . . . . AOE 32 | . . 9 . . 6 17 . . . . . . . . Terrain Rammed . | . . . . . . . . . . . . . . . Walls Destroyed . | . . . . . . . . . . . . . . . Machines Disabled . | . . . . . . . . . . . . . . . Actions | -11 -10 -9 -9 -9 -8 -8 -7 -6 -6 -6 -6 -6 -5 -4 --------- Run | Scr Mat Mat Min Exi Min Mat Fac Fac Ext Cet Arc Hub Fac Fac Total 12685 | 272 1335 381 334 408 111 721 1717 1560 1688 393 677 342 955 1791 Wait 4149 | . 381 124 44 55 11 253 637 495 785 246 440 107 236 335 Move 7672 | 194 846 204 275 345 99 419 974 1016 802 133 187 215 671 1292 Hop 48 | . . . . . . . 5 10 4 . . 12 3 14 Pick Up 78 | 3 20 5 2 2 . 6 9 6 12 1 . . 5 7 Fast Attach 93 | 12 6 1 1 . . 7 26 3 2 1 8 . 6 20 Attach 50 | 2 4 2 1 . . 6 9 8 3 5 2 . 3 5 Detach 49 | 5 3 . 1 . . 2 11 4 5 4 5 . 2 7 Swap 28 | 1 10 5 1 1 . 3 2 . 1 1 1 . 2 . Drop 131 | 2 24 7 . 5 . 11 27 3 16 1 12 . 8 15 Fire 158 | 53 33 31 7 . 1 14 17 2 . . . . . . Melee 127 | . . . . . . . . 13 5 1 22 2 19 65 Ram . | . . . . . . . . . . . . . . . Kick 12 | . 8 2 2 . . . . . . . . . . . Crush . | . . . . . . . . . . . . . . . Escape Stasis 55 | . . . . . . . . . 18 . . 6 . 31 Rewire 35 | . . . . . . . . . 35 . . . . . Trap . | . . . . . . . . . . . . . . . Miscellaneous . | . . . . . . . . . . . . . . . Route ------- -11/Scrapyard -10/Materials (discovered 5 exits: *Mat x3 / [*Min x2]) -9/Materials -9/Mines (discovered 2 exits: *Mat / *Exi) -9/Exiles -8/Mines -8/Materials -7/Factory (discovered 3 exits: *Fac / Low x2) -6/Factory (discovered 5 exits: *Fac / Low x2 / *Ext x2) -6/Extension (discovered 3 exits: *Fac x2 / [*Cet]) -6/Cetus -6/Archives (discovered 3 exits: *Fac / *Hub x2) -6/Hub_04(d) (discovered 4 exits: *Fac x4) -5/Factory (discovered 4 exits: *Fac x4) -4/Factory (discovered 4 exits: [*Res] / Upp x2 / Arm) History --------- Turn | Location | Event 2 | -11/Scrapyard | Discovered new exit (range 16) 425 | -11/Scrapyard | Entered Materials 477 | -10/Materials | Build established: Mutant 902 | -10/Materials | Discovered new exit (range 16) 1244 | -10/Materials | Discovered new exit (range 13) 1352 | -10/Materials | Discovered new exit (range 10) 1552 | -10/Materials | Discovered new exit (range 7) 1624 | -10/Materials | Discovered new exit (range 16) 1937 | -10/Materials | Build established: Scavenger-Mutant 2161 | -10/Materials | Entered another Materials area 2161 | -9/Materials | Accompanied by 1 ally 2161 | -9/Materials | Evolved 2 slots: Propulsion x1, Utility x1 2409 | -9/Materials | Identified exit to Mines 2633 | -9/Materials | Entered Mines 2633 | -9/Mines | Accompanied by 1 ally 2806 | -9/Mines | Discovered new exit (range 9) 2870 | -9/Mines | Received a Rocket Launcher from a helpful Derelict 3022 | -9/Mines | Deemed a non-threat by the Exiles lab entrance 3022 | -9/Mines | Discovered new exit (range 5) 3037 | -9/Mines | Entered Exiles 3037 | -9/Exiles | Accompanied by 1 ally 3066 | -9/Exiles | Met 8R-AWN 3087 | -9/Exiles | Met EX-HEX 3131 | -9/Exiles | Met EX-DEC 3151 | -9/Exiles | Learned location of Zion (-7) 3285 | -9/Exiles | Met EX-BIN 3298 | -9/Exiles | Aligned with FarCom system 3299 | -9/Exiles | Given EX-Vault access code 3327 | -9/Exiles | Opened EX-Vault 3334 | -9/Exiles | Found AWS/Autocannon 3341 | -9/Exiles | Found Cloak of Protection 3365 | -9/Exiles | Warned to stay clear of 0b10 Research branches 3471 | -9/Exiles | Discovered new exit (range 14) 3512 | -9/Exiles | Stole two prototypes: Cloak of Protection, AWS/Autocannon 3512 | -9/Exiles | Entered Mines 3512 | -8/Mines | Accompanied by 1 ally 3625 | -8/Mines | Discovered new exit (range 7) 3644 | -8/Mines | Entered Materials 3644 | -8/Materials | Accompanied by 1 ally 3644 | -8/Materials | Evolved 2 slots: Utility x1, Weapon x1 3821 | -8/Materials | Garrison activated, responded to threat 4050 | -8/Materials | Build established: Skirmisher 4727 | -8/Materials | Discovered new exit (range 15) 4769 | -8/Materials | Identified exit to Factory 4793 | -8/Materials | Entered Factory 4793 | -7/Factory | Accompanied by 1 ally 4793 | -7/Factory | Evolved 2 slots: Propulsion x2 4795 | -7/Factory | FarCom data flow suspended 5001 | -7/Factory | Identified exit to Lower Caves 5067 | -7/Factory | Build established: Sprinter 5561 | -7/Factory | Discovered new exit (range 14) 5659 | -7/Factory | Cargo convoy interrupted 5695 | -7/Factory | Found Prototype Processor 5695 | -7/Factory | Identified Exp. Melee Analysis Suite 5699 | -7/Factory | Found Prototype Slashing Weapon 5699 | -7/Factory | Identified Molecular Scythe 5710 | -7/Factory | Found Exp. Melee Analysis Suite 5711 | -7/Factory | Found Exp. Melee Analysis Suite 5713 | -7/Factory | Found Exp. Melee Analysis Suite 5714 | -7/Factory | Found Exp. Melee Analysis Suite 5728 | -7/Factory | Found Molecular Scythe 5816 | -7/Factory | Entered another Factory area 5816 | -6/Factory | Accompanied by 1 ally 5816 | -6/Factory | Evolved 2 slots: Utility x2 5893 | -6/Factory | Garrison activated, responded to threat 6209 | -6/Factory | Discovered new exit (range 12) 6256 | -6/Factory | Identified exit to Lower Caves 6256 | -6/Factory | Identified exit to Extension 6516 | -6/Factory | First assault squad dispatched 6612 | -6/Factory | Entered Extension 6612 | -6/Extension | Accompanied by 2 allies 6620 | -6/Extension | Rescued a captive Derelict 6621 | -6/Extension | Rescued a captive Derelict 6622 | -6/Extension | Rescued a captive Derelict 6624 | -6/Extension | Rescued a captive Derelict 6628 | -6/Extension | Rescued a captive Derelict 6631 | -6/Extension | Rescued a captive Derelict 6636 | -6/Extension | Rescued a captive Derelict 6637 | -6/Extension | Rescued a captive Derelict 6640 | -6/Extension | Rescued a captive Derelict 6642 | -6/Extension | Rescued a captive Derelict 6648 | -6/Extension | Rescued a captive Derelict 6648 | -6/Extension | Rescued a captive Derelict 6962 | -6/Extension | First assault squad dispatched 7113 | -6/Extension | Build established: Commander-Sprinter 7150 | -6/Extension | Discovered new exit (range 15) 7150 | -6/Extension | Spotted B-75 Beast 7184 | -6/Extension | Allies destroyed B-75 Beast 7189 | -6/Extension | Extracted ID and sensor layout for unrecognized location from A7's data core 7472 | -6/Extension | Build established: Sprinter 7655 | -6/Extension | Discovered new exit (range 15) 7655 | -6/Extension | Discovered new exit (range 15) 7680 | -6/Extension | Entered Cetus 7680 | -6/Cetus | Accompanied by 1 ally 7809 | -6/Cetus | Spotted Cetus Guard 7809 | -6/Cetus | Spotted Cetus Guard 7809 | -6/Cetus | Spotted Cetus Guard 7817 | -6/Cetus | Allies destroyed Cetus Guard 7820 | -6/Cetus | Allies destroyed Cetus Guard 7832 | -6/Cetus | Destroyed Cetus Guard 7893 | -6/Cetus | Discovered new exit (range 16) 7972 | -6/Cetus | Entered Archives 7972 | -6/Archives | Accompanied by 1 ally 8207 | -6/Archives | Discovered new exit (range 15) 8248 | -6/Archives | Discovered new exit (range 14) 8347 | -6/Archives | Discovered new exit (range 16) 8536 | -6/Archives | Entered Hub_04(d) 8536 | -6/Hub_04(d) | Accompanied by 1 ally 8537 | -6/Hub_04(d) | Identified exit to Factory 8564 | -6/Hub_04(d) | Garrison activated, responded to threat 8690 | -6/Hub_04(d) | Core integrity fell below 50% 8699 | -6/Hub_04(d) | Network Hub disabled 8707 | -6/Hub_04(d) | Entered Factory 8707 | -5/Factory | Accompanied by 1 ally 8707 | -5/Factory | Evolved 2 slots: Utility x2 8738 | -5/Factory | Build established: Hacker-Sprinter 8884 | -5/Factory | Repaired Greatsword 8896 | -5/Factory | Identified exit to Factory 8934 | -5/Factory | Repaired Lgt. Angular Momentum Engine 9007 | -5/Factory | First assault squad dispatched 9115 | -5/Factory | Core integrity fell below 50% 9162 | -5/Factory | Core integrity fell below 20% 9184 | -5/Factory | Entered another Factory area 9184 | -4/Factory | Accompanied by 1 ally 9184 | -4/Factory | Evolved 2 slots: Power x1, Utility x1 9190 | -4/Factory | Identified exit to Upper Caves 9190 | -4/Factory | Identified exit to Armory 9803 | -4/Factory | Core integrity fell below 50% 9820 | -4/Factory | Core integrity fell below 20% 9832 | -4/Factory | Lost 7 parts (2p3n2u) 9934 | -4/Factory | First assault squad dispatched 10023 | -4/Factory | Discovered new exit (range 17) 10081 | -4/Factory | Destroyed by Y-64 Sentinel with Wave Gun Last Messages --------------- 10005_ Acquired Lgt. Quantum Reactor. 10006_ K-01 Serf collects debris. 10007_ Dropped Lgt. Quantum Reactor. 10008_ Acquired Lgt. Quantum Reactor. 10009_ K-01 Serf collects debris. 10010_ Dropped Lgt. Antimatter Reactor. 10010_ Slug penetrates G-67 Veteran. 10010_ Slug penetrates Wall. 10010_ Slug penetrates G-67 Veteran. 10010_ Adv. Sensor Array destroyed. 10013_ Acquired 15 matter. 10015_ Slug penetrates G-67 Veteran. 10016_ G-67 Veteran destroyed. 10016_ K-01 Serf collects debris. 10023_ EXIT=FOUND 10025_ K-01 Serf collects debris. 10031_ Acquired Adv. Melee Analysis Suite. 10047_ Penetrated by Slug. 10077_ Y-64 Sentinel Imp. Treads severed. 10078_ Penetrated by Slug. Map ----- +----------------------------------------------------+ | ????????????????????????????????????+ #?# | | ????????????????????????????????????# #?# | | ????????????????????????????????????# #?# | | ????????????????????????????????????# #?# | | ????????????????????????????????????# #?# | | ????????????????????????????????????# #?# | | ????????????????????????????????????# #??? | | ????????????????????????????????????# #????? | | ??????????????????????????#######???# #??????? | | ??????????????????????????? ????# #??????? | | ??????????????????????????? ????# ######## | | ???????????????????????????? ?????# | | ??????????????# ??????????? ????## ! | | ????????????### #########+####### !!%** | | ?????????? ! *!=% * | | ?????????? %! !*[=%=! | | ?????????? ###### ########+#######+## | | ??????????? ???????????# #?# =%! # | | ?????????????????????????# #?# # | | ?????????????????????????# #?# """" # | | ?????????????####+######## #?# " """" # | | ?????????????? # #?# """" # | | ?????????????# """"" """ # #?# """"" # | | ?????????????# "" F" """ # #?#| # | | ?????????????# "" "" """ # ### ! """"" # | | ?????????????# @ %+ """"" # | | ?????????????# ! #Y####### """""" #### | | ?????????????############# #?????# """""" ????? | | ???????????????????????### ###???# ????? | | ???????????????######### #???############????? | | ??????# #???????????????????? | | ??????# < #???????????????????? | | ??????# ! / #???????????????????? | | ??????? ##+####### #???????????????????? | | ??????? ?????????????###+###???????????????????? | | ?????????????????????????????????????????????????? | | ?????????????????????????????????????????????????? | | ?????????????????????????????????????????????????? | | ?????????????????????????????????????????????????? | | ?????????????????????????????????????????????????? | | ?????????????????????????????????????????????????? | | ?????????????????????????????????????????????????? | | ?????????????????????????????????????????????????? | | ?????????????????????????????????????????????????? | | ?????????????????????????????????????????????????? | | ?????????????????????????????????????????????????? | | ?????????????????????????????????????????????????? | | ?????????????????????????????????????????????????? | | ?????????????????????????????????????????????????? | | ?????????????????????????????????????????????????? | +----------------------------------------------------+ Best States ------------- Heat Dissipation 75 Coolant Potential 65 Energy Generation 29 Energy Capacity 660 Matter Stores 300 Matter Capacity 300 Sight Range 20 Robot Scan Range 16 Terrain Scan Range 16 Terrain Scan Density 60 Additional Mass Support 12 Armor Coverage 300 Utility Shielding 66 Weapon Shielding 66 Evasion (%) 65 Melee Accuracy 36 Recoil Reduction 2 Salvage Targeting 2 Offensive Hacking 36 Defensive Hacking 24 Item Schematics ----------------- Imp. Weapon Shielding | -6/Factory | Scanalyzed Robot Schematics ------------------ M-13 Machinist | -10/Materials | Hacked G-50 Soldier | -6/Hub_04(d) | Hacked I-47 Archangel | -5/Factory | Hacked Fabricated ------------ Nothing Alien Tech Used ----------------- None Achievements -------------- None Challenges ------------ None Player 2 | -11 -10 -9 -9 -9 -8 -8 -7 -6 -6 -6 -6 -6 -5 -4 ---------- Run | Scr Mat Mat Min Exi Min Mat Fac Fac Ext Cet Arc Hub Fac Fac Slots Evolved 12 | . 2 . . . 2 2 2 . . . . 2 2 . Power 2 | . . . . . . 1 1 . . . . . . . Propulsion 4 | . . . . . 1 . 1 . . . . 1 1 . Utility 3 | . 1 . . . . . . . . . . 1 1 . Weapon 3 | . 1 . . . 1 1 . . . . . . . . Parts Attached 176 | . 13 11 . 1 . 6 9 24 28 9 10 4 17 44 Parts Lost 40 | . . 1 . . . . . 2 3 6 1 1 14 12 Damage Taken 11354 | . 327 307 69 . 18 36 251 1488 655 1148 222 1223 2621 2989 Core 1683 | . 40 51 8 . . 10 63 55 20 142 22 146 692 434 Player 2/Cogmind (%) 58 | . 47 77 100 . . 100 61 100 30 75 100 88 74 37 Absorbed by Shields . | . . . . . . . . . . . . . . . Damage Inflicted 15885 | . 510 576 158 . . 192 653 2854 3132 795 625 1223 1850 3317 Player 2/Cogmind (%) 50 | . 43 36 45 . . 23 44 73 71 35 22 83 61 43 Combat Hostiles Destroyed 93 | . 5 4 2 . . 3 4 17 16 4 4 7 15 12 Player 2/Cogmind (%) 54 | . 33 26 33 . . 33 50 77 84 36 100 77 68 42 Game ------ Seed SuspensionMolecularStick Manual? 0 Play Time 01:23:06 Cumulative 2132.7 hours Start 2021.08.19 @ 09:49:52 End 2021.08.19 @ 11:13:53 Sessions 1 Manual Loads 0 Difficulty Rogue Special Mode AFD2020/Player2 Game No. 2654 Rogue 2646 Adventurer 0 Explorer 8 Win Type - Total 240 Types 45/31/90/3/3/5/60/2/1 Lore% 100 Gallery% 99 Achievement% 100 Wizard Run 0 Options --------- ASCII 0 Keyboard 1 Movement Vi Keybinds 1 Fullscreen 1 Font 18/SmallcapsGlow Map View 76x50 Tactical HUD 1 Map Filters NONE Filters NONE Steam 1 RUN: be564aa9-90ee-44fb-a41b-1bfad8825d1d